[Event "Championnat du monde jeunes U10"]
[Date "2024.11.24"]
[White "Youn, Laeho"]
[Black "Golya, David"]
[WhiteElo "1520"]
[BlackElo "1672"]
[Round "9.18"]
[Result "1-0"]
[TimeControl "5400+30"]

1. e4 {[%clk 1:30:49]} 1... c5 {[%clk 1:30:57]} 2. Nf3 {[%clk 1:31:01]} 2... Nc6
{[%clk 1:31:22]} 3. c3 {[%clk 1:31:18]} 3... d5 {[%clk 1:31:31]} 4. exd5 {[%clk
1:31:42]} 4... Qxd5 {[%clk 1:31:56]} 5. d4 {[%clk 1:32:07]} 5... cxd4 {[%clk
1:32:19]} 6. cxd4 {[%clk 1:32:21]} 6... e5 {[%clk 1:32:41]} 7. Nc3 {[%clk
1:32:24]} 7... Bb4 {[%clk 1:33:01]} 8. Be3 {[%clk 1:31:22]} 8... Bg4 {[%clk
1:26:56]} 9. Be2 {[%clk 1:30:40]} 9... O-O-O {[%clk 1:23:04]} 10. O-O {[%clk
1:29:54]} 10... Bxc3 {[%clk 1:21:47]} 11. bxc3 {[%clk 1:30:12]} 11... e4 {[%clk
1:21:45]} 12. Ne5 {[%clk 1:29:53]} 12... Nxe5 {[%clk 1:10:42]} 13. Bxg4+ {[%clk
1:27:56]} 13... Nd7 {[%clk 1:10:44]} 14. c4 {[%clk 1:28:09]} 14... Qd6 {[%clk
1:10:12]} 15. c5 {[%clk 1:28:11]} 15... Qf8 {[%clk 0:52:22]} 16. d5 {[%clk
1:28:19]} 16... f5 {[%clk 0:47:30]} 17. Bh3 {[%clk 1:27:34]} 17... Ne7 {[%clk
0:45:04]} 18. c6 {[%clk 1:27:19]} 18... bxc6 {[%clk 0:45:12]} 19. dxc6 {[%clk
1:26:43]} 19... Nxc6 {[%clk 0:44:34]} 20. Rc1 {[%clk 1:27:04]} 20... Ne5 {[%clk
0:30:44]} 21. Qa4 {[%clk 1:26:40]} 21... Kd7 {[%clk 0:19:21]} 22. Bg5 {[%clk
1:23:02]} 22... Rc8 {[%clk 0:18:38]} 23. Qxe4 {[%clk 1:21:58]} 23... g6 {[%clk
0:16:01]} 24. Rfd1+ {[%clk 1:21:19]} 24... Ke8 {[%clk 0:16:21]} 25. Rxc6 {[%clk
1:19:40]} 25... fxe4 {[%clk 0:16:21]} 26. Rxc8+ {[%clk 1:19:58]} 26... Kf7
{[%clk 0:16:13]} 27. Rxf8+ {[%clk 1:20:19]} 27... Rxf8 {[%clk 0:16:33]} 28. Rd8
{[%clk 1:20:19]} 28... Rxd8 {[%clk 0:14:14]} 29. Bxd8 {[%clk 1:20:43]} 29... Nc6
{[%clk 0:14:02]} 30. Bg5 {[%clk 1:20:43]} 30... Nb4 {[%clk 0:14:13]} 31. Bd2
{[%clk 1:20:47]} 31... Nd5 {[%clk 0:13:21]} 32. g3 {[%clk 1:20:56]} 32... Kf6
{[%clk 0:13:43]} 33. Kf1 {[%clk 1:20:48]} 33... Ke5 {[%clk 0:13:26]} 34. Ke2
{[%clk 1:21:02]} 34... Nb6 {[%clk 0:13:05]} 35. Be3 {[%clk 1:21:14]} 35... Kd5
{[%clk 0:12:43]} 36. Bxb6 {[%clk 1:21:33]} 36... axb6 {[%clk 0:13:09]} 37. Ke3
{[%clk 1:21:56]} 37... g5 {[%clk 0:13:23]} 38. Bg2 {[%clk 1:21:57]} 38... h6
{[%clk 0:13:43]} 39. Bxe4+ {[%clk 1:22:19]} 39... Kc4 {[%clk 0:13:43]} 40. Bh7
{[%clk 1:22:34]} 40... b5 {[%clk 0:13:45]} 41. Ke4 {[%clk 1:22:46]} 1-0

[Variant "Standard"]
[Site "Europe Echecs"]

[Event "Championnat du monde jeunes U10"]
[Date "2024.11.24"]
[White "Radovic, Koca"]
[Black "Kaloh, Edvard"]
[WhiteElo "1626"]
[BlackElo "1506"]
[Round "9.19"]
[Result "0-1"]
[TimeControl "5400+30"]

1. d4 Nf6 {[%clk 1:25:29]} 2. Nf3 {[%clk 1:31:20]} 2... g6 {[%clk 1:25:54]} 3.
e3 {[%clk 1:31:07]} 3... Bg7 {[%clk 1:26:12]} 4. Bd3 {[%clk 1:31:33]} 4... O-O
{[%clk 1:26:28]} 5. O-O {[%clk 1:31:57]} 5... b6 {[%clk 1:26:41]} 6. b3 {[%clk
1:32:02]} 6... Bb7 {[%clk 1:26:56]} 7. Bb2 {[%clk 1:32:18]} 7... d6 {[%clk
1:27:08]} 8. Nbd2 {[%clk 1:32:40]} 8... c5 {[%clk 1:27:17]} 9. Re1 {[%clk
1:31:38]} 9... Nbd7 {[%clk 1:27:12]} 10. e4 {[%clk 1:14:18]} 10... cxd4 {[%clk
1:22:46]} 11. Bxd4 {[%clk 1:14:23]} 11... Rc8 {[%clk 1:22:02]} 12. Rc1 {[%clk
1:14:26]} 12... Nc5 {[%clk 1:19:46]} 13. b4 {[%clk 1:01:19]} 13... Nxd3 {[%clk
1:19:17]} 14. cxd3 Qd7 {[%clk 1:17:24]} 15. Nf1 {[%clk 0:50:21]} 15... Ba6
{[%clk 1:17:06]} 16. Qd2 {[%clk 0:41:49]} 16... Qb5 {[%clk 1:12:56]} 17. Rcd1
{[%clk 0:40:05]} 17... Rc7 {[%clk 1:11:54]} 18. e5 {[%clk 0:38:40]} 18... dxe5
{[%clk 1:10:37]} 19. Rxe5 {[%clk 0:38:23]} 19... Qd7 {[%clk 1:10:45]} 20. Re2
{[%clk 0:36:53]} 20... Rfc8 {[%clk 1:08:56]} 21. Qe1 {[%clk 0:34:12]} 21... e6
{[%clk 1:08:40]} 22. Ne5 {[%clk 0:32:00]} 22... Qxd4 {[%clk 1:08:20]} 23. Nf3
{[%clk 0:30:45]} 23... Qd6 {[%clk 1:08:28]} 24. Ne5 {[%clk 0:25:38]} 24... Rc2
{[%clk 1:07:50]} 25. Nc4 {[%clk 0:24:30]} 25... Rxe2 {[%clk 1:07:47]} 26. Qxe2
{[%clk 0:24:14]} 26... Bxc4 {[%clk 1:07:14]} 27. dxc4 {[%clk 0:24:25]} 27...
Qxb4 {[%clk 1:06:57]} 28. Rd4 {[%clk 0:24:15]} 28... Qc5 {[%clk 1:05:38]} 29.
Qd2 {[%clk 0:23:27]} 29... Nd5 {[%clk 1:01:47]} 30. Re4 {[%clk 0:21:40]} 30...
Nc3 {[%clk 1:01:41]} 31. Rf4 {[%clk 0:19:32]} 31... e5 {[%clk 1:01:13]} 32. Rh4
{[%clk 0:18:15]} 32... Bf6 {[%clk 1:00:32]} 33. Rh3 {[%clk 0:17:22]} 33... Qxc4
{[%clk 1:00:41]} 34. Qh6 {[%clk 0:17:07]} 0-1

[Variant "Standard"]
[Site "Europe Echecs"]

[Event "Championnat du monde jeunes U10"]
[Date "2024.11.24"]
[White "Vukashinovikj, Jovan"]
[Black "Kalinichenko, German Yu"]
[WhiteElo "1454"]
[BlackElo "1621"]
[Round "9.20"]
[Result "0-1"]
[TimeControl "5400+30"]

1. e4 {[%clk 1:30:58]} 1... e5 {[%clk 1:30:53]} 2. Nf3 {[%clk 1:31:24]} 2... Nc6
{[%clk 1:31:18]} 3. Bc4 {[%clk 1:31:48]} 3... Nf6 {[%clk 1:31:45]} 4. d4 {[%clk
1:32:09]} 4... exd4 {[%clk 1:32:09]} 5. O-O {[%clk 1:32:17]} 5... Nxe4 {[%clk
1:32:35]} 6. Nc3 {[%clk 1:30:45]} 6... Nxc3 {[%clk 1:31:55]} 7. bxc3 {[%clk
1:31:09]} 7... d5 {[%clk 1:31:56]} 8. Bb5 {[%clk 1:31:30]} 8... Be7 {[%clk
1:32:01]} 9. Nxd4 {[%clk 1:31:23]} 9... Bd7 {[%clk 1:32:14]} 10. Re1 {[%clk
1:31:00]} 10... O-O {[%clk 1:32:21]} 11. Bd3 {[%clk 1:30:52]} 11... Bf6 {[%clk
1:31:55]} 12. Be3 {[%clk 1:30:32]} 12... Ne5 {[%clk 1:27:57]} 13. Bf5 {[%clk
1:29:56]} 13... Nc4 {[%clk 1:25:58]} 14. Qf3 {[%clk 1:27:06]} 14... Bxf5 {[%clk
1:25:44]} 15. Qxf5 {[%clk 1:27:17]} 15... c5 {[%clk 1:24:15]} 16. Nb3 {[%clk
1:25:23]} 16... Bxc3 {[%clk 1:22:32]} 17. Bxc5 {[%clk 1:25:35]} 17... Bxe1
{[%clk 1:22:39]} 18. Bxf8 {[%clk 1:25:54]} 18... Bc3 {[%clk 1:22:02]} 19. Rd1
{[%clk 1:26:08]} 19... Qxf8 {[%clk 1:22:14]} 20. Qxd5 {[%clk 1:26:26]} 20... Rc8
{[%clk 1:20:26]} 21. Rd3 {[%clk 1:25:56]} 21... Qe7 {[%clk 1:19:55]} 22. h3
{[%clk 1:26:11]} 22... Qe1+ {[%clk 1:19:31]} 23. Kh2 {[%clk 1:26:29]} 23... Be5+
{[%clk 1:19:52]} 24. g3 {[%clk 1:25:57]} 24... Qxf2+ {[%clk 1:20:17]} 25. Kh1
{[%clk 1:26:22]} 25... h6 {[%clk 1:18:16]} 26. Rf3 {[%clk 1:26:09]} 26... Qe1+
{[%clk 1:18:15]} 27. Kh2 {[%clk 1:26:22]} 27... Nd6 {[%clk 1:17:56]} 28. Nc5
{[%clk 1:25:52]} 28... Qe2+ {[%clk 1:18:07]} 29. Kh1 {[%clk 1:26:10]} 29... Rxc5
{[%clk 1:18:17]} 30. Qxc5 {[%clk 1:26:21]} 30... Qxf3+ {[%clk 1:18:42]} 31. Kg1
{[%clk 1:26:43]} 31... Qxg3+ {[%clk 1:19:04]} 32. Kf1 {[%clk 1:27:02]} 32...
Qxh3+ {[%clk 1:18:17]} 33. Ke2 {[%clk 1:27:17]} 33... Qg4+ {[%clk 1:18:32]} 34.
Kf1 {[%clk 1:27:32]} 34... Bd4 {[%clk 1:17:52]} 35. Qxd6 {[%clk 1:27:44]} 35...
Qf3+ {[%clk 1:18:14]} 36. Ke1 {[%clk 1:28:06]} 36... Bf2+ {[%clk 1:18:31]} 37.
Kd2 {[%clk 1:28:15]} 37... Qe3+ {[%clk 1:18:46]} 38. Kd1 {[%clk 1:28:29]} 38...
Qe1# {[%clk 1:19:10]} 0-1

[Variant "Standard"]
[Site "Europe Echecs"]

[Event "Championnat du monde jeunes U10"]
[Date "2024.11.25"]
[White "Shogdzhiev, Roman"]
[Black "Nguyen Quang Anh"]
[WhiteElo "2202"]
[BlackElo "1889"]
[Round "10.1"]
[Result "1-0"]
[TimeControl "5400+30"]

1. e4 {[%clk 1:30:59]} 1... e6 {[%clk 1:30:52]} 2. d4 {[%clk 1:31:27]} 2... d5
{[%clk 1:31:16]} 3. Nc3 {[%clk 1:31:54]} 3... Bb4 {[%clk 1:31:32]} 4. e5 {[%clk
1:32:24]} 4... c5 {[%clk 1:31:44]} 5. a3 {[%clk 1:32:51]} 5... Bxc3+ {[%clk
1:31:51]} 6. bxc3 {[%clk 1:33:16]} 6... Nc6 {[%clk 1:32:04]} 7. Qg4 {[%clk
1:33:44]} 7... g6 {[%clk 1:32:04]} 8. a4 {[%clk 1:33:17]} 8... Qa5 {[%clk
1:23:31]} 9. Bd2 {[%clk 1:33:30]} 9... c4 {[%clk 1:23:37]} 10. Nf3 {[%clk
1:33:46]} 10... Bd7 {[%clk 1:22:57]} 11. Qf4 {[%clk 1:34:15]} 11... h6 {[%clk
1:21:10]} 12. h4 {[%clk 1:34:41]} 12... Rh7 {[%clk 1:19:09]} 13. g3 {[%clk
1:35:01]} 13... O-O-O {[%clk 1:18:05]} 14. Bg2 {[%clk 1:35:30]} 14... Rf8 {[%clk
1:16:18]} 15. O-O {[%clk 1:30:54]} 15... Rg7 {[%clk 1:03:50]} 16. Qe3 {[%clk
1:29:13]} 16... Nce7 {[%clk 0:55:13]} 17. Qe1 {[%clk 1:23:58]} 17... Nc6 {[%clk
0:47:21]} 18. Qc1 {[%clk 1:21:32]} 18... Rh7 {[%clk 0:46:14]} 19. Nh2 {[%clk
1:21:22]} 19... g5 {[%clk 0:37:52]} 20. hxg5 {[%clk 1:19:26]} 20... hxg5 {[%clk
0:38:16]} 21. Qa3 {[%clk 1:19:52]} 21... Nce7 {[%clk 0:29:01]} 22. Bxg5 {[%clk
1:20:11]} 22... f6 {[%clk 0:28:41]} 23. exf6 {[%clk 1:19:02]} 23... Nxf6 {[%clk
0:29:05]} 24. Nf3 {[%clk 1:12:38]} 24... Qd8 {[%clk 0:25:13]} 25. Ne5 {[%clk
1:12:02]} 25... Ne4 {[%clk 0:19:40]} 26. Bxe7 {[%clk 1:01:15]} 26... Rxe7 {[%clk
0:19:35]} 27. Bxe4 {[%clk 0:50:33]} 27... dxe4 {[%clk 0:19:56]} 28. Qc5+ {[%clk
0:51:01]} 28... Kb8 {[%clk 0:18:46]} 29. Ng6 {[%clk 0:51:24]} 29... Ref7 {[%clk
0:18:30]} 30. Nxf8 {[%clk 0:49:57]} 30... Rxf8 {[%clk 0:18:54]} 31. d5 {[%clk
0:47:50]} 31... exd5 {[%clk 0:18:22]} 32. Qxd5 {[%clk 0:47:42]} 32... Bg4 {[%clk
0:18:09]} 33. Qxd8+ {[%clk 0:45:28]} 33... Rxd8 {[%clk 0:18:28]} 34. f4 {[%clk
0:45:26]} 34... exf3 {[%clk 0:18:26]} 35. Rae1 {[%clk 0:45:49]} 35... Rc8 {[%clk
0:16:14]} 36. a5 {[%clk 0:44:24]} 36... Bh5 {[%clk 0:16:09]} 37. Re5 {[%clk
0:44:38]} 37... Rh8 {[%clk 0:16:26]} 38. Rg5 {[%clk 0:44:54]} 38... Be8 {[%clk
0:15:31]} 39. Rxf3 {[%clk 0:45:09]} 39... Bc6 {[%clk 0:15:55]} 40. Rf7 {[%clk
0:44:48]} 40... a6 {[%clk 0:16:20]} 41. Kf2 {[%clk 0:42:01]} 41... Rh2+ {[%clk
0:16:37]} 42. Ke3 {[%clk 0:42:26]} 42... Rxc2 {[%clk 0:17:00]} 43. Rg8+ {[%clk
0:42:14]} 43... Ka7 {[%clk 0:17:19]} 44. Rff8 {[%clk 0:42:42]} 44... b5 {[%clk
0:17:06]} 45. Rg7+ {[%clk 0:41:55]} 45... Bb7 {[%clk 0:17:03]} 46. Rff7 {[%clk
0:41:09]} 1-0

[Variant "Standard"]
[Site "Europe Echecs"]

[Event "Championnat du monde jeunes U10"]
[Date "2024.11.25"]
[White "Anand, Tsogtbileg"]
[Black "Llari, Marc"]
[WhiteElo "1974"]
[BlackElo "2201"]
[Round "10.2"]
[Result "1/2-1/2"]
[TimeControl "5400+30"]

1. c4 {[%clk 1:26:00]} 1... c5 {[%clk 1:30:38]} 2. Nc3 {[%clk 1:26:24]} 2... Nc6
{[%clk 1:30:54]} 3. g3 {[%clk 1:26:49]} 3... g6 {[%clk 1:31:13]} 4. Bg2 {[%clk
1:27:06]} 4... Bg7 {[%clk 1:31:29]} 5. Nf3 {[%clk 1:27:27]} 5... e6 {[%clk
1:30:33]} 6. d4 {[%clk 1:26:54]} 6... Nxd4 {[%clk 1:27:13]} 7. Nxd4 {[%clk
1:26:55]} 7... cxd4 {[%clk 1:25:03]} 8. Nb5 {[%clk 1:26:27]} 8... Qb6 {[%clk
1:25:03]} 9. e3 {[%clk 1:16:15]} 9... a6 {[%clk 1:17:30]} 10. Nxd4 {[%clk
1:15:29]} 10... Qb4+ {[%clk 1:16:00]} 11. Qd2 {[%clk 1:13:31]} 11... Qxc4 {[%clk
1:13:42]} 12. b3 {[%clk 1:13:36]} 12... Qc7 {[%clk 1:09:03]} 13. Bb2 {[%clk
1:04:45]} 13... Nf6 {[%clk 1:07:10]} 14. Ba3 {[%clk 1:03:42]} 14... Bf8 {[%clk
0:59:02]} 15. Rc1 {[%clk 1:02:01]} 15... Qb6 {[%clk 0:57:07]} 16. Bb2 {[%clk
0:55:32]} 16... Bb4 {[%clk 0:54:48]} 17. Bc3 {[%clk 0:55:55]} 17... Bxc3 {[%clk
0:54:20]} 18. Qxc3 {[%clk 0:51:52]} 18... O-O {[%clk 0:53:49]} 19. O-O {[%clk
0:51:10]} 19... d5 {[%clk 0:52:38]} 20. Nc6 {[%clk 0:47:36]} 20... bxc6 {[%clk
0:51:10]} 21. Qxf6 {[%clk 0:48:00]} 21... Bd7 {[%clk 0:51:26]} 22. h4 {[%clk
0:47:05]} 22... Qd8 {[%clk 0:51:45]} 23. Qd4 {[%clk 0:46:02]} 23... Qe7 {[%clk
0:50:50]} 24. e4 {[%clk 0:36:20]} 24... Rfb8 {[%clk 0:46:06]} 25. exd5 {[%clk
0:35:36]} 25... cxd5 {[%clk 0:43:29]} 26. Rfe1 {[%clk 0:31:05]} 26... h5 {[%clk
0:39:46]} 27. Qxd5 {[%clk 0:27:48]} 27... exd5 {[%clk 0:38:39]} 28. Rxe7 {[%clk
0:28:10]} 28... Be6 {[%clk 0:39:04]} 29. Rd1 {[%clk 0:27:58]} 29... Rd8 {[%clk
0:38:35]} 30. Rc7 {[%clk 0:27:27]} 30... Rab8 {[%clk 0:35:21]} 31. Rd4 {[%clk
0:26:07]} 31... Rbc8 {[%clk 0:33:08]} 32. Rxc8 {[%clk 0:22:53]} 32... Rxc8
{[%clk 0:32:54]} 33. Rd1 {[%clk 0:23:01]} 33... Rc5 {[%clk 0:31:12]} 34. b4
{[%clk 0:21:55]} 34... Rb5 {[%clk 0:31:27]} 35. a3 {[%clk 0:21:34]} 35... Kf8
{[%clk 0:30:16]} 36. f4 {[%clk 0:18:20]} 36... Ke7 {[%clk 0:29:45]} 37. Kf2
{[%clk 0:18:45]} 37... Kd6 {[%clk 0:29:50]} 38. Ke3 {[%clk 0:18:16]} 38... Rb6
{[%clk 0:27:02]} 39. Rd4 {[%clk 0:15:32]} 39... a5 {[%clk 0:24:13]} 40. f5
{[%clk 0:08:57]} 40... gxf5 {[%clk 0:23:59]} 41. Kf4 {[%clk 0:09:18]} 41... axb4
{[%clk 0:23:38]} 42. axb4 f6 {[%clk 0:15:07]} 43. Bf3 {[%clk 0:09:30]} 43... Bf7
{[%clk 0:15:29]} 44. Kxf5 {[%clk 0:09:25]} 44... Ke7 {[%clk 0:15:48]} 45. Kf4
{[%clk 0:04:46]} 45... Kd6 {[%clk 0:15:15]} 46. Kf5 {[%clk 0:03:40]} 46... Ke7
{[%clk 0:15:06]} 47. Rd2 {[%clk 0:02:48]} 47... Rxb4 {[%clk 0:10:55]} 48. Re2+
{[%clk 0:02:27]} 48... Kd6 {[%clk 0:10:34]} 49. Kxf6 {[%clk 0:02:52]} 49... Rb3
{[%clk 0:10:53]} 50. Kxf7 {[%clk 0:01:02]} 50... Rxf3+ {[%clk 0:11:09]} 51. Kg6
{[%clk 0:01:28]} 51... Rxg3+ {[%clk 0:11:34]} 52. Kxh5 {[%clk 0:01:54]} 52... d4
{[%clk 0:11:43]} 53. Kh6 {[%clk 0:02:15]} 53... d3 {[%clk 0:11:30]} 54. Re8
{[%clk 0:02:31]} 54... Kc7 {[%clk 0:09:25]} 55. Re1 {[%clk 0:02:46]} 55... d2
{[%clk 0:09:45]} 56. Rd1 {[%clk 0:03:04]} 56... Rg2 {[%clk 0:10:09]} 57. h5
{[%clk 0:03:30]} 57... Kd6 {[%clk 0:10:24]} 58. Kh7 {[%clk 0:03:57]} 58... Ke6
{[%clk 0:09:18]} 59. h6 {[%clk 0:04:26]} 59... Kf6 {[%clk 0:09:30]} 60. Kh8
{[%clk 0:04:55]} 60... Re2 {[%clk 0:09:43]} 61. Kh7 {[%clk 0:01:37]} 61... Re7+
{[%clk 0:07:02]} 62. Kg8 {[%clk 0:01:59]} 62... Re8+ {[%clk 0:07:28]} 63. Kh7
{[%clk 0:02:26]} 63... Re2 {[%clk 0:07:51]} 64. Rf1+ {[%clk 0:01:37]} 64... Kg5
{[%clk 0:07:10]} 65. Rg1+ {[%clk 0:02:03]} 65... Kf6 {[%clk 0:07:31]} 66. Rf1+
{[%clk 0:02:28]} 66... Ke6 {[%clk 0:07:37]} 67. Rd1 {[%clk 0:02:09]} 67... Rg2
{[%clk 0:05:35]} 68. Kh8 {[%clk 0:01:38]} 68... Kf7 {[%clk 0:04:56]} 69. h7
{[%clk 0:01:00]} 69... Rf2 {[%clk 0:04:56]} 70. Rxd2 {[%clk 0:01:10]} 70... Rxd2
{[%clk 0:05:20]} 1/2-1/2

[Variant "Standard"]
[Site "Europe Echecs"]

[Event "Championnat du monde jeunes U10"]
[Date "2024.11.25"]
[White "Mirzhanov, Arlan"]
[Black "Advik Amit Agrawal"]
[WhiteElo "1721"]
[BlackElo "1982"]
[Round "10.3"]
[Result "1-0"]
[TimeControl "5400+30"]

1. e4 {[%clk 1:30:56]} 1... c5 {[%clk 1:30:21]} 2. Nf3 {[%clk 1:29:16]} 2... Nc6
{[%clk 1:30:41]} 3. c3 {[%clk 1:28:07]} 3... d5 {[%clk 1:28:56]} 4. exd5 {[%clk
1:28:11]} 4... Qxd5 {[%clk 1:29:19]} 5. d4 {[%clk 1:28:34]} 5... e5 {[%clk
1:26:13]} 6. dxe5 {[%clk 1:28:34]} 6... Qxd1+ {[%clk 1:26:33]} 7. Kxd1 {[%clk
1:28:54]} 7... Bg4 {[%clk 1:26:51]} 8. Bf4 {[%clk 1:25:36]} 8... Nge7 {[%clk
1:22:03]} 9. Bd3 {[%clk 1:20:39]} 9... O-O-O {[%clk 1:20:19]} 10. Ke2 {[%clk
1:18:00]} 10... Nd5 {[%clk 1:04:55]} 11. Bg3 {[%clk 1:12:34]} 11... g6 {[%clk
1:04:03]} 12. Bb5 {[%clk 1:02:03]} 12... Bh6 {[%clk 0:56:32]} 13. Bxc6 {[%clk
0:47:39]} 13... bxc6 {[%clk 0:56:48]} 14. h3 {[%clk 0:45:58]} 14... Bf5 {[%clk
0:54:37]} 15. Re1 {[%clk 0:42:59]} 15... Nb4 16. Nd4 {[%clk 0:39:25]} 16... cxd4
{[%clk 0:51:25]} 17. cxb4 {[%clk 0:39:20]} 17... d3+ {[%clk 0:51:48]} 18. Kd1
{[%clk 0:37:06]} 18... d2 {[%clk 0:52:02]} 19. Rg1 {[%clk 0:35:28]} 19... Rd3
{[%clk 0:50:19]} 20. Na3 {[%clk 0:30:52]} 20... Be6 {[%clk 0:49:18]} 21. b5
{[%clk 0:21:09]} 21... c5 {[%clk 0:44:38]} 22. b3 {[%clk 0:18:32]} 22... Rhd8
{[%clk 0:43:43]} 23. Bh2 {[%clk 0:13:22]} 23... g5 {[%clk 0:41:03]} 24. Ke2
{[%clk 0:13:13]} 24... g4 {[%clk 0:40:40]} 25. hxg4 {[%clk 0:13:21]} 25... Bxg4+
{[%clk 0:39:55]} 26. f3 {[%clk 0:13:48]} 26... Re3+ {[%clk 0:38:29]} 27. Kf2
{[%clk 0:12:01]} 27... Be6 {[%clk 0:38:38]} 28. Rad1 {[%clk 0:11:19]} 28... Rc3
{[%clk 0:36:46]} 29. Ke2 {[%clk 0:09:48]} 29... Bf5 {[%clk 0:35:43]} 30. g4
{[%clk 0:09:08]} 30... Re3+ {[%clk 0:35:03]} 31. Kf2 {[%clk 0:09:29]} 31... Bg6
{[%clk 0:26:41]} 32. g5 {[%clk 0:09:29]} 32... Rdd3 {[%clk 0:27:05]} 33. Rxd2
{[%clk 0:07:29]} 33... Rxf3+ {[%clk 0:26:49]} 34. Ke1 {[%clk 0:07:24]} 34...
Rfe3+ {[%clk 0:24:01]} 35. Kd1 {[%clk 0:06:03]} 35... Bh5+ {[%clk 0:22:36]} 36.
Kc1 {[%clk 0:05:53]} 36... Rxd2 {[%clk 0:22:44]} 37. Kxd2 {[%clk 0:06:18]} 37...
Re2+ {[%clk 0:23:02]} 38. Kd3 {[%clk 0:05:48]} 38... Bg7 {[%clk 0:22:50]} 39.
Bf4 {[%clk 0:05:54]} 39... Bxe5 {[%clk 0:22:22]} 40. Bxe5 {[%clk 0:06:19]} 40...
Rxe5 {[%clk 0:22:40]} 41. Nc4 {[%clk 0:06:15]} 41... Bg6+ {[%clk 0:22:59]} 42.
Kd2 {[%clk 0:06:15]} 42... Rd5+ {[%clk 0:22:19]} 43. Ke3 {[%clk 0:06:32]} 43...
Kc7 {[%clk 0:22:13]} 44. Kf4 {[%clk 0:05:57]} 44... Rf5+ {[%clk 0:22:01]} 45.
Kg4 {[%clk 0:04:18]} 45... Rf2 {[%clk 0:21:14]} 46. a3 {[%clk 0:03:20]} 46...
Re2 {[%clk 0:19:21]} 47. Rf1 {[%clk 0:03:29]} 47... Re4+ {[%clk 0:18:45]} 48.
Rf4 {[%clk 0:03:39]} 48... Re1 {[%clk 0:19:03]} 49. Rf6 {[%clk 0:03:36]} 49...
Re6 {[%clk 0:18:38]} 50. Rf2 {[%clk 0:02:20]} 50... Kb7 {[%clk 0:14:11]} 51. Rd2
{[%clk 0:02:28]} 51... Re4+ {[%clk 0:13:53]} 52. Kg3 {[%clk 0:02:48]} 52... Rd4
{[%clk 0:11:20]} 53. Kf3 {[%clk 0:01:43]} 53... Kc7 {[%clk 0:09:19]} 54. Rxd4
{[%clk 0:01:11]} 54... cxd4 {[%clk 0:09:44]} 55. Ke2 {[%clk 0:01:09]} 55... Be4
{[%clk 0:08:55]} 56. b4 {[%clk 0:01:04]} 56... Bc2 {[%clk 0:07:40]} 57. Kd2
{[%clk 0:00:50]} 57... Be4 {[%clk 0:07:41]} 58. a4 {[%clk 0:00:56]} 58... Bf5
{[%clk 0:07:37]} 59. Ne5 Kb6 {[%clk 0:06:16]} 60. Nxf7 {[%clk 0:00:37]} 60...
Be6 {[%clk 0:06:31]} 61. Nd6 {[%clk 0:00:57]} 61... Kc7 {[%clk 0:05:45]} 62.
Ne8+ {[%clk 0:01:04]} 62... Kb6 {[%clk 0:05:57]} 63. Nf6 {[%clk 0:01:07]} 63...
Bf5 {[%clk 0:06:12]} 64. Nd5+ {[%clk 0:01:26]} 64... Kb7 {[%clk 0:06:36]} 65. a5
{[%clk 0:01:38]} 65... Be4 {[%clk 0:06:42]} 66. Nf4 {[%clk 0:01:40]} 66... Bf5
{[%clk 0:06:42]} 67. Ne2 {[%clk 0:02:02]} 67... d3 {[%clk 0:07:04]} 68. Nf4
{[%clk 0:02:19]} 68... Bd7 {[%clk 0:07:23]} 69. Kxd3 {[%clk 0:02:18]} 69...
Bxb5+ {[%clk 0:07:46]} 70. Kd4 {[%clk 0:02:45]} 70... Kc6 {[%clk 0:07:42]} 71.
Ne6 {[%clk 0:02:52]} 71... Ba4 {[%clk 0:08:04]} 72. Kc3 {[%clk 0:03:06]} 72...
Kd6 {[%clk 0:07:29]} 73. Nf8 {[%clk 0:02:56]} 73... Ke5 {[%clk 0:07:48]} 74.
Nxh7 {[%clk 0:02:36]} 74... Kf5 {[%clk 0:07:55]} 75. Kc4 {[%clk 0:02:09]} 75...
Kg6 {[%clk 0:07:18]} 76. Nf6 {[%clk 0:02:15]} 76... Kxg5 {[%clk 0:07:41]} 77.
Nd5 {[%clk 0:02:42]} 77... Kf5 {[%clk 0:07:45]} 78. Kc5 {[%clk 0:02:56]} 78...
Ke6 {[%clk 0:06:19]} 79. b5 {[%clk 0:02:37]} 79... Bb3 {[%clk 0:05:11]} 80. Nb4
{[%clk 0:01:22]} 80... Kd7 {[%clk 0:03:43]} 81. Nc6 {[%clk 0:01:34]} 81... a6
{[%clk 0:03:53]} 82. Nb8+ {[%clk 0:00:51]} 82... Kc7 {[%clk 0:04:06]} 83. Nxa6+
{[%clk 0:01:17]} 83... Kb7 {[%clk 0:04:24]} 84. Nb4 {[%clk 0:01:42]} 84... Be6
{[%clk 0:04:37]} 85. a6+ {[%clk 0:02:08]} 85... Ka8 86. b6 {[%clk 0:01:53]}
86... Bc8 {[%clk 0:05:21]} 87. Kb5 {[%clk 0:02:14]} 87... Bd7+ {[%clk 0:05:40]}
88. Ka5 {[%clk 0:02:29]} 88... Kb8 {[%clk 0:05:48]} 89. Nd5 {[%clk 0:02:46]}
89... Bc6 {[%clk 0:05:54]} 90. Nc7 {[%clk 0:02:54]} 90... Be4 {[%clk 0:06:04]}
91. a7+ {[%clk 0:03:19]} 91... Kc8 {[%clk 0:06:28]} 92. a8=Q+ {[%clk 0:03:37]}
92... Bxa8 {[%clk 0:06:52]} 93. Nxa8 {[%clk 0:04:05]} 93... Kb7 {[%clk 0:07:12]}
94. Nc7 {[%clk 0:04:28]} 1-0

[Variant "Standard"]
[Site "Europe Echecs"]